Workbook

Sheet Quote
F1: 18805 Adams Ct. #110 Morgan Hill, CA 95037 USA 866-washlink / +1-408-924-0808
J2: =NOW() -> 2017-05-04T08:13:45.200
B3: prepared for: | C3: Your Car Wash
A4: Qty | C4: WASHLINK SYSTEMS MOTOR CONTROL CENTER FULL LOAD AMPS
B5: Voltage? | C5: 460/480vac
A6: Mtr | B6: Type | D6: HP | F6: Name
A7: 1 | B7: Choose HP | D7: ? | J7: AMPS
A8: 2 | B8: Choose HP | D8: ? | J8: AMPS
A9: 3 | B9: Choose HP | D9: ? | J9: AMPS
A10: 4 | B10: Choose HP | D10: ? | J10: AMPS
A11: 5 | B11: Choose HP | D11: ? | J11: AMPS
A12: 6 | B12: Choose HP | D12: ? | J12: AMPS
A13: 7 | B13: Choose HP | D13: ? | J13: AMPS
A14: 8 | B14: Choose HP | D14: ? | J14: AMPS
A15: 9 | B15: Choose HP | D15: ? | J15: AMPS
A16: 10 | B16: Choose HP | D16: ? | J16: AMPS
A17: 11 | B17: Choose HP | D17: ? | J17: AMPS
A18: 12 | B18: Choose HP | D18: ? | J18: AMPS
A19: 13 | B19: Choose HP | D19: ? | J19: AMPS
A20: 14 | B20: Choose HP | D20: ? | J20: AMPS
A21: 15 | B21: Choose HP | D21: ? | J21: AMPS
A22: 16 | B22: Choose HP | D22: ? | J22: AMPS
A23: 17 | B23: Choose HP | D23: ? | J23: AMPS
A24: 18 | B24: Choose HP | D24: ? | J24: AMPS
A25: 19 | B25: Choose HP | D25: ? | J25: AMPS
A26: 20 | B26: Choose HP | D26: ? | J26: AMPS
A27: 21 | B27: Choose HP | D27: ? | J27: AMPS
A28: 22 | B28: Choose HP | D28: ? | J28: AMPS
A29: 23 | B29: Choose HP | D29: ? | J29: AMPS
A30: 24 | B30: Choose HP | D30: ? | J30: AMPS
A31: 25 | B31: Choose HP | D31: ? | J31: AMPS
A32: =A31+1 -> 26 | B32: Choose HP | D32: ? | J32: AMPS
A33: =A32+1 -> 27 | B33: Choose HP | D33: ? | J33: AMPS
A34: =A33+1 -> 28 | B34: Choose HP | D34: ? | J34: AMPS
A35: 29 | B35: Choose HP | D35: ? | J35: AMPS
A36: 30 | B36: Choose HP | D36: ? | J36: AMPS
A37: 31 | B37: Choose HP | D37: ? | J37: AMPS
A38: 32 | B38: Choose HP | D38: ? | J38: AMPS
A39: 33 | B39: Choose HP | D39: ? | J39: AMPS
A40: 34 | B40: Choose HP | D40: ? | J40: AMPS
A41: 35 | B41: Choose HP | D41: ? | J41: AMPS
A42: 36 | B42: Choose HP | D42: ? | J42: AMPS
A43: 37 | B43: Choose HP | D43: ? | J43: AMPS
A44: 38 | B44: Choose HP | D44: ? | J44: AMPS
A45: 39 | B45: Choose HP | D45: ? | J45: AMPS
A46: 40 | B46: Choose HP | D46: ? | J46: AMPS
A47: 0 | B47: Enter description here | G47: 0 | I47: =A47*G47 -> 0 | J47: AMPS
A48: 0 | B48: Enter description here | G48: 0 | I48: =A48*G48 -> 0 | J48: AMPS
A49: 0 | B49: Enter description here | G49: 0 | I49: =A49*G49 -> 0 | J49: AMPS
I50: MCC FLA | J50: =SUM(I7:I49) -> 0
C51: Typical Main Breaker Sizes | I51: 25% of FLA | J51: =J50*0.25 -> 0
B52: 100, 125, 150, 200, 225, 250, 300, 400, 600, 800 amp | I52: Required Power | J52: =SUM(J50:J51) -> 0
B54: MCC Notes:
B105: Accepted by: | C105: Name:__________________________________________Date:_______________
C107: Signature:___________________________________________________________
B108: This is for planing only! Actual drawings will be provided with deposited order.

Sheet MCC Info (hidden)
A1: HP | B1: 208 | C1: 230 | D1: 380-400 | E1: 460 | F1: 575-600 | G1: SMARTLink | H1: Across the Line
A2: 0.5 | B2: 2.4 | C2: 2.2 | D2: 1.3 | E2: 1.1 | F2: 0.9 | G2: HP | H2: 208-240 | I2: 380-415 | J2: 460-480
A3: 1 | B3: 4.6 | C3: 4.2 | D3: 2.3 | E3: 2.1 | F3: 1.7 | G3: 1 | H3: =B3+125 -> 129.6 | I3: =C3+125 -> 129.2 | J3: =E3+125 -> 127.1
A4: 1.5 | B4: 6.6 | C4: 6 | D4: 3.3 | E4: 3 | F4: 2.4 | G4: 1.5 | H4: =B4+125 -> 131.6 | I4: 131 | J4: 128
A5: 2 | B5: 7.5 | C5: 6.8 | D5: 4.3 | E5: 3.4 | F5: 2.7 | G5: 2 | H5: 132.5 | I5: 131.8 | J5: 128.4
A6: 3 | B6: 10.6 | C6: 9.6 | D6: 6.1 | E6: 4.8 | F6: 3.9 | G6: 3 | H6: 135.6 | I6: 134.6 | J6: 129.8
A7: 5 | B7: 16.7 | C7: 15.2 | D7: 9.7 | E7: 7.6 | F7: 6.1 | G7: 5 | H7: 141.7 | I7: 140.2 | J7: 132.6
A8: 7.5 | B8: 24.2 | C8: 22 | D8: 14 | E8: 11 | F8: 9 | G8: 7.5 | H8: 149.2 | I8: 147 | J8: 136
A9: 10 | B9: 30.8 | C9: 28 | D9: 18 | E9: 14 | F9: 11 | G9: 10 | H9: 155.8 | I9: 153 | J9: 139
A10: 15 | B10: 46.2 | C10: 42 | D10: 27 | E10: 21 | F10: 17 | G10: 15 | H10: 171.2 | I10: 167 | J10: 146
A11: 20 | B11: 59.8 | C11: 54 | D11: 34 | E11: 27 | F11: 22 | G11: 20 | H11: 184.8 | I11: 179 | J11: 152
A12: 25 | B12: 74.8 | C12: 68 | D12: 44 | E12: 34 | F12: 27 | G12: 25 | H12: 199.8 | I12: 193 | J12: 159
A13: 30 | B13: 88 | C13: 80 | D13: 51 | E13: 40 | F13: 32 | G13: 30 | H13: 213 | I13: 205 | J13: 165
A14: 40 | B14: 114 | C14: 104 | D14: 66 | E14: 52 | F14: 41
A15: 50 | B15: 143 | C15: 130 | D15: 83 | E15: 65 | F15: 52
A16: 60 | B16: 169 | C16: 154 | D16: 103 | E16: 77 | F16: 62
B21: Soft Starter
A22: HP | B22: 208-240 | C22: 380-415 | D22: 460-480 | E22: 575-600 | G22: HP | H22: 208-240 | I22: 380-415 | J22: 460-480
A23: 1 | B23: =B3+700 -> 704.6 | C23: 704.2 | D23: =E3+700 -> 702.1 | E23: 701.7 | G23: 1 | H23: =B23+125 -> 829.6 | I23: =C23+125 -> 829.2 | J23: =D23+125 -> 827.1
A24: 1.5 | B24: 706.6 | C24: 706 | D24: 703 | E24: 702.4 | G24: 1.5 | H24: 831.6 | I24: 831 | J24: 828
A25: 2 | B25: 707.5 | C25: 706.8 | D25: 703.4 | E25: 702.7 | G25: 2 | H25: 832.5 | I25: 831.8 | J25: 828.4
A26: 3 | B26: 710.6 | C26: 709.6 | D26: 704.8 | E26: 703.9 | G26: 3 | H26: 835.6 | I26: 834.6 | J26: 829.8
A27: 5 | B27: 716.7 | C27: 715.2 | D27: 707.6 | E27: 706.1 | G27: 5 | H27: 841.7 | I27: 840.2 | J27: 832.6
A28: 7.5 | B28: 724.2 | C28: 722 | D28: 711 | E28: 709 | G28: 7.5 | H28: 849.2 | I28: 847 | J28: 836
A29: 10 | B29: =B9+1700 -> 1730.8 | C29: =C9+700 -> 728 | D29: 714 | E29: 711 | G29: 10 | H29: 1855.8 | I29: 853 | J29: 839
A30: 15 | B30: =B10+1700 -> 1746.2 | C30: 742 | D30: 721 | E30: 717 | G30: 15 | H30: 1871.2 | I30: 867 | J30: 846
A31: 20 | B31: =B11+1700 -> 1759.8 | C31: =C11+1100 -> 1154 | D31: =E11+1100 -> 1127 | E31: 1122 | G31: 20 | H31: 1884.8 | I31: 1279 | J31: 1252
A32: 25 | B32: =B12+1700 -> 1774.8 | C32: 1168 | D32: 1134 | E32: 1127 | G32: 25 | H32: 1899.8 | I32: 1293 | J32: 1259
A33: 30 | B33: =B13+1700 -> 1788 | C33: 1180 | D33: 1140 | E33: 1132 | G33: 30 | H33: 1913 | I33: 1305 | J33: 1265
B41: VFD's
A42: HP | B42: 208-240 | C42: 380-415 | D42: 460-480 | E42: 575-600 | G42: HP | H42: 208-240 | I42: 380-415 | J42: 460-480
A43: 1 | B43: =B3+1100 -> 1104.6 | C43: =C3+1300 -> 1304.2 | D43: =E3+1300 -> 1302.1 | E43: =F3+2600 -> 2601.7 | G43: 1 | H43: =B43+125 -> 1229.6 | I43: =C43+125 -> 1429.2 | J43: =D43+125 -> 1427.1
A44: 1.5 | B44: =B4+1100 -> 1106.6 | C44: 1306 | D44: =E4+1300 -> 1303 | E44: =F4+2600 -> 2602.4 | G44: 1.5 | H44: 1231.6 | I44: 1431 | J44: 1428
A45: 2 | B45: =B5+1100 -> 1107.5 | C45: 1306.8 | D45: =E5+1300 -> 1303.4 | E45: =F5+2600 -> 2602.7 | G45: 2 | H45: 1232.5 | I45: 1431.8 | J45: 1428.4
A46: 3 | B46: =B6+1100 -> 1110.6 | C46: =C6+1500 -> 1509.6 | D46: =E6+1500 -> 1504.8 | E46: =F6+3000 -> 3003.9 | G46: 3 | H46: 1235.6 | I46: 1634.6 | J46: 1629.8
A47: 5 | B47: =B7+1400 -> 1416.7 | C47: =C7+1700 -> 1715.2 | D47: =E7+1700 -> 1707.6 | E47: =F7+3400 -> 3406.1 | G47: 5 | H47: 1541.7 | I47: 1840.2 | J47: 1832.6
A48: 7.5 | B48: =B8+1450 -> 1474.2 | C48: =C8+1700 -> 1722 | D48: =E8+1700 -> 1711 | E48: =F8+3400 -> 3409 | G48: 7.5 | H48: 1599.2 | I48: 1847 | J48: 1836
A49: 10 | B49: =B9+1500 -> 1530.8 | C49: =C9+1800 -> 1828 | D49: =E9+1800 -> 1814 | E49: =F9+3600 -> 3611 | G49: 10 | H49: 1655.8 | I49: 1953 | J49: 1939
A50: 15 | B50: =B10+2100 -> 2146.2 | C50: =C10+2100 -> 2142 | D50: =E10+2100 -> 2121 | E50: =F10+4200 -> 4217 | G50: 15 | H50: 2271.2 | I50: 2267 | J50: 2246
A51: 20 | B51: =B11+2500 -> 2559.8 | C51: =C11+2600 -> 2654 | D51: =E11+2600 -> 2627 | E51: =F11+5200 -> 5222 | G51: 20 | H51: 2684.8 | I51: 2779 | J51: 2752
A52: 25 | B52: =B12+2600 -> 2674.8 | C52: =C12+3300 -> 3368 | D52: =E12+3300 -> 3334 | E52: =F12+6600 -> 6627 | G52: 25 | H52: 2799.8 | I52: 3493 | J52: 3459
A53: 30 | B53: =B13+7000 -> 7088 | C53: =C13+7500 -> 7580 | D53: =E13+7500 -> 7540 | E53: =F13+15000 -> 15032 | G53: 30 | H53: 7213 | I53: 7705 | J53: 7665
B57: Breaker Only
A58: HP
A59: 1 | B59: 300
A60: 1.5 | B60: 300
A61: 2 | B61: 300
A62: 3 | B62: 300
A63: 5 | B63: 400
A64: 7.5 | B64: 400
A65: 10 | B65: 400
A66: 15 | B66: 600
A67: 20 | B67: 700
A68: 25 | B68: 900
A69: 30 | B69: 1100
B72: HP
B73: ? | D73: Voltage | F73: Control Voltage | H73: Type | K73: SMARTLink
B74: 0.5 | D74: Choose | F74: Choose | H74: Choose Type | K74: No
B75: 1 | D75: 208vac | F75: 24vac | H75: Choose HP | K75: Yes
B76: 1.5 | D76: 230/240vac | F76: 24vdc | H76: Soft Starter
B77: 2 | D77: 380/400vac | F77: 110vac | H77: Variable Frequency Drive
B78: 3 | D78: 460/480vac | F78: 220vac | H78: Breaker Only
B79: 5 | D79: 575vac
B80: 7.5
B81: 10 | D81: Chose
B82: 15
B83: 20
B84: 25
B85: 30
B86: 40
B87: 50
B88: 60
